Workbook

Sheet Activo
A1: Balance de Situación
A3: Empresa: CLINICA HEILSA, S.L.U.
A4: Período: de Enero a Octubre
A5: Fecha: 15/11/2022
A7: Activo | B7: Año | C7: Enero | D7: Febrero | E7: Marzo | F7: Abril | G7: Mayo | H7: Junio | I7: Julio | J7: Agosto | K7: Septiembre | L7: Octubre | M7: Total
A9: A) ACTIVO NO CORRIENTE | B9: 2022 | C9: =+C10+C15+C17 -> 26,580.05 | D9: 0 | E9: 343.77 | F9: 0 | G9: 324.57 | H9: 0 | I9: 0 | J9: 0 | K9: 0 | L9: 0 | M9: 27,248.39
A10: II. Inmovilizado material | B10: 2022 | C10: =SUM(C11:C14) -> 20,902.69 | D10: 0 | E10: 343.77 | F10: 0 | G10: 324.57 | H10: 0 | I10: 0 | J10: 0 | K10: 0 | L10: 0 | M10: 21,571.03
A11: 21300001 MAQUINARIA DJO IBERICA PRODUCT | B11: 2022 | C11: 10,750.00 | D11: 0 | E11: 0 | F11: 0 | G11: 0 | H11: 0 | I11: 0 | J11: 0 | K11: 0 | L11: 0 | M11: 10,750.00
A12: 21300002 MAQUINARIA VARIA | B12: 2022 | C12: 10,800.00 | D12: 0 | E12: 0 | F12: 0 | G12: 324.57 | H12: 0 | I12: 0 | J12: 0 | K12: 0 | L12: 0 | M12: 11,124.57
A13: 21700000 EQUIPOS PARA PROCESOS DE INFOR | B13: 2022 | C13: 0 | D13: 0 | E13: 343.77 | F13: 0 | G13: 0 | H13: 0 | I13: 0 | J13: 0 | K13: 0 | L13: 0 | M13: 343.77
A14: 28130000 AMORTIZACIÓN ACUMULADA DE MAQU | B14: 2022 | C14: -647.31 | D14: 0 | E14: 0 | F14: 0 | G14: 0 | H14: 0 | I14: 0 | J14: 0 | K14: 0 | L14: 0 | M14: -647.31
A15: V. Inversiones financieras a largo plazo | B15: 2022 | C15: =C16 -> 3,286.50 | D15: 0 | E15: 0 | F15: 0 | G15: 0 | H15: 0 | I15: 0 | J15: 0 | K15: 0 | L15: 0 | M15: 3,286.50
A16: 26000000 FIANZA LOCAL | B16: 2022 | C16: 3,286.50 | D16: 0 | E16: 0 | F16: 0 | G16: 0 | H16: 0 | I16: 0 | J16: 0 | K16: 0 | L16: 0 | M16: 3,286.50
A17: VI. Activos por Impuesto diferido | B17: 2022 | C17: =C18 -> 2,390.86 | D17: 0 | E17: 0 | F17: 0 | G17: 0 | H17: 0 | I17: 0 | J17: 0 | K17: 0 | L17: 0 | M17: 2,390.86
A18: 47450000 CRÉD. PÉRDIDAS A COMPEN. 2021 | B18: 2022 | C18: 2,390.86 | D18: 0 | E18: 0 | F18: 0 | G18: 0 | H18: 0 | I18: 0 | J18: 0 | K18: 0 | L18: 0 | M18: 2,390.86
A19: B) ACTIVO CORRIENTE | B19: 2022 | C19: =+C20+C28+C30 -> 11,107.82 | D19: 338.57 | E19: -1,040.39 | F19: 1,333.76 | G19: 2,653.15 | H19: -283.42 | I19: -3,020.84 | J19: -1,267.48 | K19: -1,958.97 | L19: -417.01 | M19: 7,445.19
A20: II. Deudores comerciales y otras cuentas a cob. | B20: 2022 | C20: =+C21+C24 -> 624.52 | D20: -1,395.50 | E20: -2,861.31 | F20: 5,191.47 | G20: 592.64 | H20: 1,470.76 | I20: 517.99 | J20: 352.84 | K20: -4,405.33 | L20: -23.81 | M20: 64.27
A21: 1. Clientes ventas y prestación de servicios | B21: 2022 | C21: =+C22 -> 548.97 | D21: -1,439.00 | E21: -2,760.56 | F21: 5,136.25 | G21: 541.97 | H21: 1,567.50 | I21: 464.25 | J21: 322.50 | K21: -4,321.25 | L21: -58.50 | M21: 2.13
A22: b) Cltes.ventas y prestación servicios CP | B22: 2022 | C22: =C23 -> 548.97 | D22: -1,439.00 | E22: -2,760.56 | F22: 5,136.25 | G22: 541.97 | H22: 1,567.50 | I22: 464.25 | J22: 322.50 | K22: -4,321.25 | L22: -58.50 | M22: 2.13
A23: 43000000 CLIENTES (EUROS) | B23: 2022 | C23: 548.97 | D23: -1,439.00 | E23: -2,760.56 | F23: 5,136.25 | G23: 541.97 | H23: 1,567.50 | I23: 464.25 | J23: 322.50 | K23: -4,321.25 | L23: -58.50 | M23: 2.13
A24: 3. Otros deudores | B24: 2022 | C24: =SUM(C25:C27) -> 75.55 | D24: 43.50 | E24: -100.75 | F24: 55.22 | G24: 50.67 | H24: -96.74 | I24: 53.74 | J24: 30.34 | K24: -84.08 | L24: 34.69 | M24: 62.14
A25: 47090000 HP, DEUDORA DEVOLUC. IMPUESTOS | B25: 2022 | C25: 18.30 | D25: 0 | E25: 0 | F25: 0 | G25: 0 | H25: 0 | I25: 0 | J25: 0 | K25: 0 | L25: 0 | M25: 18.30
A26: 47200000 IVA SOPORTADO | B26: 2022 | C26: 57.25 | D26: 43.50 | E26: -100.75 | F26: 46.07 | G26: 50.67 | H26: -96.74 | I26: 53.74 | J26: 30.34 | K26: -84.08 | L26: 34.69 | M26: 34.69
A27: 47300000 HP, RETENCIONES Y PAGOS CUENTA | B27: 2022 | C27: 0 | D27: 0 | E27: 0 | F27: 9.15 | G27: 0 | H27: 0 | I27: 0 | J27: 0 | K27: 0 | L27: 0 | M27: 9.15
A28: IV. Inversiones financieras a corto plazo | B28: 2022 | C28: =C29 -> 1,370.14 | D28: 0 | E28: 0 | F28: 0 | G28: 0 | H28: 0 | I28: 0 | J28: 0 | K28: 0 | L28: 0 | M28: 1,370.14
A29: 55100000 CTA CORRIENTE SOC. Y ADMINIST. | B29: 2022 | C29: 1,370.14 | D29: 0 | E29: 0 | F29: 0 | G29: 0 | H29: 0 | I29: 0 | J29: 0 | K29: 0 | L29: 0 | M29: 1,370.14
A30: VI. Efectivo y otros activos líquidos equival. | B30: 2022 | C30: =SUM(C31:C32) -> 9,113.16 | D30: 1,734.07 | E30: 1,820.92 | F30: -3,857.71 | G30: 2,060.51 | H30: -1,754.18 | I30: -3,538.83 | J30: -1,620.32 | K30: 2,446.36 | L30: -393.20 | M30: 6,010.78
A31: 57000000 CAJA, EUROS | B31: 2022 | C31: -267.77 | D31: 1,429.95 | E31: 2,511.78 | F31: -3,034.09 | G31: 0 | H31: 0 | I31: 0 | J31: 0 | K31: 0 | L31: 0 | M31: 639.87
A32: 57200000 BANC SABADELL | B32: 2022 | C32: 9,380.93 | D32: 304.12 | E32: -690.86 | F32: -823.62 | G32: 2,060.51 | H32: -1,754.18 | I32: -3,538.83 | J32: -1,620.32 | K32: 2,446.36 | L32: -393.20 | M32: 5,370.91
A33: T O T A L A C T I V O | B33: 2022 | C33: =+C9+C19 -> 37,687.87 | D33: 338.57 | E33: -696.62 | F33: 1,333.76 | G33: 2,977.72 | H33: -283.42 | I33: -3,020.84 | J33: -1,267.48 | K33: -1,958.97 | L33: -417.01 | M33: 34,693.58

Sheet Pasivo
A1: Balance de Situación
A3: Empresa: CLINICA HEILSA, S.L.U.
A4: Período: de Enero a Octubre
A5: Fecha: 15/11/2022
A7: Pasivo | B7: Año | C7: Enero | D7: Febrero | E7: Marzo | F7: Abril | G7: Mayo | H7: Junio | I7: Julio | J7: Agosto | K7: Septiembre | L7: Octubre | M7: Total
A9: A) PATRIMONIO NETO | B9: 2022 | C9: =+C10 -> -4,424.88 | D9: 1,448.82 | E9: -249.06 | F9: 1,517.34 | G9: 985.16 | H9: -984.10 | I9: 726.63 | J9: -5,451.55 | K9: -3,649.81 | L9: 1,077.72 | M9: -9,003.73
A10: A-1) Fondos propios | B10: 2022 | C10: =+C11+C14+C18+C20 -> -4,424.88 | D10: 1,448.82 | E10: -249.06 | F10: 1,517.34 | G10: 985.16 | H10: -984.10 | I10: 726.63 | J10: -5,451.55 | K10: -3,649.81 | L10: 1,077.72 | M10: -9,003.73
A11: I. Capital | B11: 2022 | C11: =+C12 -> 3,000.00 | D11: 0 | E11: 0 | F11: 0 | G11: 0 | H11: 0 | I11: 0 | J11: 0 | K11: 0 | L11: 0 | M11: 3,000.00
A12: 1. Capital escriturado | B12: 2022 | C12: =C13 -> 3,000.00 | D12: 0 | E12: 0 | F12: 0 | G12: 0 | H12: 0 | I12: 0 | J12: 0 | K12: 0 | L12: 0 | M12: 3,000.00
A13: 10000000 CAPITAL SOCIAL | B13: 2022 | C13: 3,000.00 | D13: 0 | E13: 0 | F13: 0 | G13: 0 | H13: 0 | I13: 0 | J13: 0 | K13: 0 | L13: 0 | M13: 3,000.00
A14: III. Reservas | B14: 2022 | C14: =+C15 -> 152.41 | D14: 0 | E14: 0 | F14: 0 | G14: 0 | H14: 0 | I14: 0 | J14: 0 | K14: 0 | L14: 0 | M14: 152.41
A15: 2. Otras reservas | B15: 2022 | C15: =SUM(C16:C17) -> 152.41 | D15: 0 | E15: 0 | F15: 0 | G15: 0 | H15: 0 | I15: 0 | J15: 0 | K15: 0 | L15: 0 | M15: 152.41
A16: 11200000 RESERVA LEGAL | B16: 2022 | C16: 20.32 | D16: 0 | E16: 0 | F16: 0 | G16: 0 | H16: 0 | I16: 0 | J16: 0 | K16: 0 | L16: 0 | M16: 20.32
A17: 11300000 RESERVAS VOLUNTARIAS | B17: 2022 | C17: 132.09 | D17: 0 | E17: 0 | F17: 0 | G17: 0 | H17: 0 | I17: 0 | J17: 0 | K17: 0 | L17: 0 | M17: 132.09
A18: V. Resultados de ejercicios anteriores | B18: 2022 | C18: =C19 -> -7,172.73 | D18: 0 | E18: 0 | F18: 0 | G18: 0 | H18: 0 | I18: 0 | J18: 0 | K18: 0 | L18: 0 | M18: -7,172.73
A19: 12100000 RDOS NEGATIVOS EJS. ANTERIORES | B19: 2022 | C19: -7,172.73 | D19: 0 | E19: 0 | F19: 0 | G19: 0 | H19: 0 | I19: 0 | J19: 0 | K19: 0 | L19: 0 | M19: -7,172.73
A20: VII. Resultado del ejercicio | B20: 2022 | C20: -404.56 | D20: 1,448.82 | E20: -249.06 | F20: 1,517.34 | G20: 985.16 | H20: -984.10 | I20: 726.63 | J20: -5,451.55 | K20: -3,649.81 | L20: 1,077.72 | M20: -4,983.41
A21: B) PASIVO NO CORRIENTE | B21: 2022 | C21: =+C22 -> 32,314.91 | D21: 0 | E21: 0 | F21: 0 | G21: 0 | H21: 0 | I21: 0 | J21: 0 | K21: 0 | L21: 0 | M21: 32,314.91
A22: II. Deudas a largo plazo | B22: 2022 | C22: 32,314.91 | D22: 0 | E22: 0 | F22: 0 | G22: 0 | H22: 0 | I22: 0 | J22: 0 | K22: 0 | L22: 0 | M22: 32,314.91
A23: 3. Otras deudas a largo plazo | B23: 2022 | C23: =SUM(C24:C25) -> 32,314.91 | D23: 0 | E23: 0 | F23: 0 | G23: 0 | H23: 0 | I23: 0 | J23: 0 | K23: 0 | L23: 0 | M23: 32,314.91
A24: 16350000 OTR. DEUDAS LP ELI MASRIERA | B24: 2022 | C24: 12,000.00 | D24: 0 | E24: 0 | F24: 0 | G24: 0 | H24: 0 | I24: 0 | J24: 0 | K24: 0 | L24: 0 | M24: 12,000.00
A25: 17100000 DEUDAS A L/P (BEATRIZ,ARNAU) | B25: 2022 | C25: 20,314.91 | D25: 0 | E25: 0 | F25: 0 | G25: 0 | H25: 0 | I25: 0 | J25: 0 | K25: 0 | L25: 0 | M25: 20,314.91
A26: C) PASIVO CORRIENTE | B26: 2022 | C26: =+C27+C30 -> 9,797.84 | D26: -1,110.25 | E26: -447.56 | F26: -183.58 | G26: 1,992.56 | H26: 700.68 | I26: -3,747.47 | J26: 4,184.07 | K26: 1,690.84 | L26: -1,494.73 | M26: 11,382.40
A27: II. Deudas a corto plazo | B27: 2022 | C27: =+C28 -> 969.68 | D27: -444.50 | E27: -80.62 | F27: 0 | G27: 0 | H27: 0 | I27: -444.56 | J27: 0 | K27: 0 | L27: 0 | M27: 0
A28: 1. Deudas con entidades de credito | B28: 2022 | C28: =C29 -> 969.68 | D28: -444.50 | E28: -80.62 | F28: 0 | G28: 0 | H28: 0 | I28: -444.56 | J28: 0 | K28: 0 | L28: 0 | M28: 0
A29: 52070001 LEASING C/P LAGE LANDEN | B29: 2022 | C29: 969.68 | D29: -444.50 | E29: -80.62 | F29: 0 | G29: 0 | H29: 0 | I29: -444.56 | J29: 0 | K29: 0 | L29: 0 | M29: 0
A30: IV. Acreedores comerc. y otras cuentas a pagar | B30: 2022 | C30: =+C31+C44 -> 8,828.16 | D30: -665.75 | E30: -366.94 | F30: -183.58 | G30: 1,992.56 | H30: 700.68 | I30: -3,302.91 | J30: 4,184.07 | K30: 1,690.84 | L30: -1,494.73 | M30: 11,382.40
A31: 1. Proveedores | B31: 2022 | C31: =+C32 -> 107.81 | D31: 196.80 | E31: -119.97 | F31: -136.29 | G31: 198.92 | H31: -140.38 | I31: -70.33 | J31: 26.58 | K31: 32.11 | L31: -120.43 | M31: -25.18
A32: b) Proveedores a corto plazo | B32: 2022 | C32: =SUM(C33:C43) -> 107.81 | D32: 196.80 | E32: -119.97 | F32: -136.29 | G32: 198.92 | H32: -140.38 | I32: -70.33 | J32: 26.58 | K32: 32.11 | L32: -120.43 | M32: -25.18
A33: 40000001 MARCOS PELLICER, FCO JAVIER | B33: 2022 | C33: 242.00 | D33: 0 | E33: 0 | F33: 0 | G33: 0 | H33: 0 | I33: 0 | J33: 0 | K33: 0 | L33: 0 | M33: 242.00
A34: 40000004 TELIC,S.A. | B34: 2022 | C34: -0.01 | D34: 0 | E34: 0 | F34: 0.01 | G34: 0 | H34: 0 | I34: 0 | J34: 0 | K34: 0 | L34: 0 | M34: 0
A35: 40000005 DJO IBERICA PRODUCTOS ORTOPEDI | B35: 2022 | C35: -166.25 | D35: 166.25 | E35: -166.25 | F35: 0 | G35: 166.25 | H35: -166.25 | I35: 0 | J35: 0 | K35: 0 | L35: 0 | M35: -166.25
A36: 40000006 FUNDACIO PRIVADA IRIS | B36: 2022 | C36: 32.07 | D36: 30.55 | E36: 46.28 | F36: 29.95 | G36: 32.67 | H36: 25.87 | I36: 20.29 | J36: 26.58 | K36: 22.37 | L36: 16.11 | M36: 282.74
A37: 40000013 AMAZON EU, S.A.R.L. | B37: 2022 | C37: 0 | D37: 0 | E37: 0 | F37: 0 | G37: 0 | H37: 0 | I37: -62.40 | J37: 0 | K37: 74.08 | L37: 43.80 | M37: 55.48
A38: 40000016 LABORATORIOS DVITA, S.L. | B38: 2022 | C38: 0 | D38: 0 | E38: 0 | F38: 0 | G38: 0 | H38: 0 | I38: 71.85 | J38: 0 | K38: 143.70 | L38: 0 | M38: 215.55
A39: 40000017 SUMINISTROS MEDICOS JMEDIS, S. | B39: 2022 | C39: 0 | D39: 0 | E39: 0 | F39: 0 | G39: 0 | H39: 0 | I39: 24.78 | J39: 0 | K39: 0 | L39: 0 | M39: 24.78
A40: 40000019 DEPORVILLAGE, S.L. | B40: 2022 | C40: 0 | D40: 0 | E40: 0 | F40: 0 | G40: 0 | H40: 0 | I40: -124.85 | J40: 0 | K40: 124.85 | L40: 0 | M40: 0
A41: 40000020 ONE SOLUTION GMBH | B41: 2022 | C41: 0 | D41: 0 | E41: 0 | F41: 0 | G41: 0 | H41: 0 | I41: 0 | J41: 0 | K41: 9.49 | L41: 0 | M41: 9.49
A42: 40000022 AMAZON ESPAÑA | B42: 2022 | C42: 0 | D42: 0 | E42: 0 | F42: 0 | G42: 0 | H42: 0 | I42: 0 | J42: 0 | K42: 0 | L42: 7.10 | M42: 7.10
A43: 40090000 PROVE.,FRAS.PTES RECIBIR O FOR | B43: 2022 | C43: 0 | D43: 0 | E43: 0 | F43: -166.25 | G43: 0 | H43: 0 | I43: 0 | J43: 0 | K43: -342.38 | L43: -187.44 | M43: -696.07
A44: 2. Otros acreedores | B44: 2022 | C44: =SUM(C45:C73) -> 8,720.35 | D44: -862.55 | E44: -246.97 | F44: -47.29 | G44: 1,793.64 | H44: 841.06 | I44: -3,232.58 | J44: 4,157.49 | K44: 1,658.73 | L44: -1,374.30 | M44: 11,407.58
A45: 41000002 LOPEZ ANADON, FRANCESC | B45: 2022 | C45: 0 | D45: 0 | E45: 0 | F45: 0 | G45: 0 | H45: 0 | I45: 223.25 | J45: 0 | K45: 0 | L45: 0 | M45: 223.25
A46: 41000003 CHINA SECURITY, S.L. | B46: 2022 | C46: 0 | D46: 0 | E46: 0 | F46: 0 | G46: 0 | H46: 0 | I46: 0 | J46: 0 | K46: 15.65 | L46: 0 | M46: 15.65
A47: 41000005 ACQUAJET BLUE PLANET, SLU | B47: 2022 | C47: 0 | D47: 44.09 | E47: -44.09 | F47: 36.74 | G47: -36.74 | H47: 0 | I47: 64.68 | J47: -64.68 | K47: 0 | L47: 64.68 | M47: 64.68
A48: 41000008 NAVARRETE PINHAL, RAFAEL | B48: 2022 | C48: 79.48 | D48: 93.50 | E48: -83.93 | F48: 15.86 | G48: 46.22 | H48: -151.13 | I48: 0 | J48: 0 | K48: 46.75 | L48: -16.57 | M48: 30.18
A49: 41000009 SALVADOR MANEGAT, PABLO | B49: 2022 | C49: 529.94 | D49: 301.25 | E49: 89.36 | F49: -90.72 | G49: 91.53 | H49: -152.49 | I49: -768.40 | J49: 472.17 | K49: 393.78 | L49: -212.39 | M49: 654.03
A50: 41000011 SALAVERT MORENO, NURIA SOLEDAD | B50: 2022 | C50: -0.01 | D50: 0 | E50: 0 | F50: 0 | G50: 0 | H50: 0 | I50: 0 | J50: 0 | K50: 0 | L50: 0 | M50: -0.01
A51: 41000012 DE LA FUENTE GONZALEZ, LAIA | B51: 2022 | C51: 0.35 | D51: 0 | E51: 0 | F51: 0 | G51: 0 | H51: 0 | I51: 0 | J51: 0 | K51: 0 | L51: 0 | M51: 0.35
A52: 41000014 REGISTRO MERCANTIL BARCELONA | B52: 2022 | C52: 0 | D52: 0 | E52: 0 | F52: 47.82 | G52: -47.82 | H52: 0 | I52: 50.46 | J52: 0 | K52: -50.46 | L52: 0 | M52: 0
A53: 41000018 DECATHLON ESPAÑA, SAU | B53: 2022 | C53: 0 | D53: 0 | E53: 0 | F53: 0 | G53: 0 | H53: 0 | I53: 0 | J53: 6.99 | K53: 0 | L53: 0 | M53: 6.99
A54: 41000024 DROGUERIA MATILDE CANO | B54: 2022 | C54: 23.35 | D54: -23.35 | E54: 0 | F54: 0 | G54: 0 | H54: 0 | I54: 0 | J54: 0 | K54: 0 | L54: 0 | M54: 0
A55: 41000025 SARRIA COPY, S.L. | B55: 2022 | C55: 0 | D55: -158.80 | E55: 0 | F55: 158.80 | G55: 0 | H55: 0 | I55: 137.00 | J55: 0 | K55: 0 | L55: 0 | M55: 137.00
A56: 41000026 REPSOL COMERC.ELECTR. GAS, SLU | B56: 2022 | C56: 0 | D56: 0 | E56: 0 | F56: 0 | G56: -285.51 | H56: 0 | I56: 285.51 | J56: 0 | K56: 0 | L56: 0 | M56: 0
A57: 41000027 VODAFONE SERVICIOS, S.L.U. | B57: 2022 | C57: 0 | D57: 0 | E57: 0 | F57: 0 | G57: 0 | H57: -86.77 | I57: 86.77 | J57: 0 | K57: 0 | L57: 54.98 | M57: 54.98
A58: 41000029 DE LAGE LANDEN INTERNATIONAL B | B58: 2022 | C58: -537.92 | D58: 0 | E58: 0 | F58: 537.92 | G58: 0 | H58: 0 | I58: 537.85 | J58: 0 | K58: 0 | L58: 0 | M58: 537.85
A59: 41000034 AIGUES DE BARCELONA | B59: 2022 | C59: 0 | D59: -88.84 | E59: 0 | F59: 88.84 | G59: 0 | H59: 0 | I59: 0 | J59: 0 | K59: 0 | L59: 0 | M59: 0
A60: 41000036 INV PROTECCION, S.L. | B60: 2022 | C60: 0 | D60: 0 | E60: 12.10 | F60: 0 | G60: 0 | H60: 0 | I60: -12.10 | J60: 0 | K60: 0 | L60: 0 | M60: 0
A61: 41000037 BAUTISTA MATEU, JORDINA | B61: 2022 | C61: -32.70 | D61: 120.02 | E61: 0 | F61: 120.02 | G61: 120.02 | H61: 120.02 | I61: 140.17 | J61: 0 | K61: 120.02 | L61: 120.02 | M61: 827.59
A62: 41000040 GARCES VIVES, LAIA | B62: 2022 | C62: 780.84 | D62: 463.60 | E62: 248.16 | F62: -282.05 | G62: 273.30 | H62: -1,483.85 | I62: -0.01 | J62: 343.61 | K62: -343.61 | L62: 1,116.73 | M62: 1,116.72
A63: 41000043 SOLA GARCIA, GERARD | B63: 2022 | C63: -221.56 | D63: 199.28 | E63: 22.28 | F63: 294.65 | G63: -79.13 | H63: 172.40 | I63: -387.87 | J63: 159.37 | K63: 60.35 | L63: 77.14 | M63: 296.91
A64: 41000044 BUFET NERIN, S.L. | B64: 2022 | C64: 1,568.89 | D64: -1,193.70 | E64: 0 | F64: 0 | G64: 47.82 | H64: 97.38 | I64: -145.20 | J64: 0 | K64: 50.46 | L64: -50.46 | M64: 375.19
A65: 41000049 SMARTFROG, S.L | B65: 2022 | C65: 0 | D65: 0 | E65: 0 | F65: 0 | G65: 0 | H65: 0 | I65: 0 | J65: 129.00 | K65: 0 | L65: 0 | M65: 129.00
A66: 46500001 REMUN.PENDTS.ALEXANDRA CASELLA | B66: 2022 | C66: 870.22 | D66: -870.22 | E66: 0 | F66: 0 | G66: 0 | H66: 192.20 | I66: 0 | J66: 0 | K66: 0 | L66: 0 | M66: 192.20
A67: 46500002 REMUN.PENDTS.LAURA RIUS | B67: 2022 | C67: 1,305.94 | D67: -1,305.94 | E67: -0.01 | F67: 0.99 | G67: 0 | H67: 290.05 | I67: 0 | J67: 0 | K67: 0 | L67: 0 | M67: 291.03
A68: 46500003 REMUN.PENDTS.ELI MASRIERA | B68: 2022 | C68: 2,000.00 | D68: 0 | E68: -2,000.00 | F68: 2,000.00 | G68: 0 | H68: 0 | I68: 0 | J68: 2,000.00 | K68: 0 | L68: 0 | M68: 4,000.00
A69: 47500000 HACIENDA PÚBLICA, ACREEDORA PO | B69: 2022 | C69: 0 | D69: 0 | E69: 371.18 | F69: -371.18 | G69: 0 | H69: 343.31 | I69: -343.31 | J69: 0 | K69: 91.04 | L69: -91.04 | M69: 0
A70: 47510000 H.P.ACREEDORA POR RETENCIONES | B70: 2022 | C70: 931.70 | D70: 1,107.28 | E70: 1,164.14 | F70: -2,122.07 | G70: 1,139.69 | H70: 1,207.12 | I70: -2,322.01 | J70: 812.74 | K70: 1,090.18 | L70: -1,980.37 | M70: 1,028.40
A71: 47510001 RETENCIONES ALQUILERES | B71: 2022 | C71: 294.82 | D71: 294.82 | E71: 294.82 | F71: -589.64 | G71: 294.82 | H71: 294.82 | I71: -589.64 | J71: 294.82 | K71: 294.82 | L71: -589.64 | M71: 294.82
A72: 47600000 SEGURIDAD SOCIAL ACREEDORA | B72: 2022 | C72: 958.67 | D72: 0 | E72: 1.82 | F72: 0 | G72: 0 | H72: 334.17 | I72: -296.51 | J72: 0 | K72: 0 | L72: 2.46 | M72: 1,000.61
A73: 47700000 IVA REPERCUTIDO | B73: 2022 | C73: 168.34 | D73: 154.46 | E73: -322.80 | F73: 106.73 | G73: 229.44 | H73: -336.17 | I73: 106.78 | J73: 3.47 | K73: -110.25 | L73: 130.16 | M73: 130.16
A74: T O T A L PATRIMONIO NETO Y PASIVO | B74: 2022 | C74: =+C9+C21+C26 -> 37,687.87 | D74: 338.57 | E74: -696.62 | F74: 1,333.76 | G74: 2,977.72 | H74: -283.42 | I74: -3,020.84 | J74: -1,267.48 | K74: -1,958.97 | L74: -417.01 | M74: 34,693.58
